[Event "Titled Tuesday Blitz November 15 Late 2022"]
[White "Sivakumar, Shaashwath"]
[Black "Sreyas Payyappat"]
[WhiteFideId "30912156"]
[BlackFideId "46674969"]
[WhiteElo "2137"]
[BlackElo "2083"]
[Result "1-0"]
[Round "08"]
[TimeControl "180+1"]
[Date "2022.11.16"]
[WhiteClock "0:00:02"]
[BlackClock "0:00:01"]

1. d4 {[%clk 0:03:00]}  Nf6 {[%clk 0:02:57]} 2. Bf4 {[%clk 0:02:59]}  c5 {[%clk 0:02:57]} 3. d5 {[%clk 0:02:58]}  e6 {[%clk 0:02:57]} 4. Nc3 {[%clk 0:02:53]}  exd5 {[%clk 0:02:57]} 5. Nxd5 {[%clk 0:02:53]}  Nxd5 {[%clk 0:02:52]} 6. Qxd5 {[%clk 0:02:52]}  Nc6 {[%clk 0:02:51]} 7. c3 {[%clk 0:02:47]}  d6 {[%clk 0:02:49]} 8. Nf3 {[%clk 0:02:44]}  Be6 {[%clk 0:02:49]} 9. Qd2 {[%clk 0:02:43]}  Be7 {[%clk 0:02:49]} 10. e4 {[%clk 0:02:42]}  O-O {[%clk 0:02:48]} 11. Be2 {[%clk 0:02:42]}  Re8 {[%clk 0:02:38]} 12. O-O {[%clk 0:02:39]}  d5 {[%clk 0:02:36]} 13. exd5 {[%clk 0:02:37]}  Bxd5 {[%clk 0:02:37]} 14. Rfd1 {[%clk 0:02:35]}  Bf8 {[%clk 0:02:33]} 15. Qc2 {[%clk 0:01:53]}  Qe7 {[%clk 0:02:02]} 16. Ng5 {[%clk 0:01:30]}  g6 {[%clk 0:01:26]} 17. Bg4 {[%clk 0:01:27]}  Rad8 {[%clk 0:00:57]} 18. c4 {[%clk 0:01:01]}  Nd4 {[%clk 0:00:53]} 19. Qc3 {[%clk 0:00:30]}  h5 {[%clk 0:00:17]} 20. Re1 {[%clk 0:00:14]}  Qf6 {[%clk 0:00:14]} 21. cxd5 {[%clk 0:00:05]}  hxg4 {[%clk 0:00:13]} 22. Be3 {[%clk 0:00:04]}  Bh6 {[%clk 0:00:09]} 23. h4 {[%clk 0:00:04]}  gxh3 {[%clk 0:00:08]} 24. Nxh3 {[%clk 0:00:03]}  Bg7 {[%clk 0:00:03]} 25. Rad1 {[%clk 0:00:02]}  Qf5 {[%clk 0:00:01]} 26. Qc4 {[%clk 0:00:02]} 1-0


[Site "https://www.chess.com"]

[Event "Titled Tuesday Blitz November 15 Late 2022"]
[White "Sokolovsky, Yahli"]
[Black "Rasulov, Vugar"]
[WhiteFideId "2820242"]
[BlackFideId "13402390"]
[WhiteElo "2316"]
[BlackElo "2509"]
[Result "0-1"]
[Round "08"]
[TimeControl "180+1"]
[Date "2022.11.15"]
[WhiteClock "0:00:35"]
[BlackClock "0:02:10"]

1. b3 {[%clk 0:03:00]}  a5 {[%clk 0:02:59]} 2. Bb2 {[%clk 0:03:01]}  a4 {[%clk 0:03:00]} 3. b4 {[%clk 0:03:02]}  Nf6 {[%clk 0:02:57]} 4. e3 {[%clk 0:03:01]}  g6 {[%clk 0:02:54]} 5. a3 {[%clk 0:02:59]}  Bg7 {[%clk 0:02:54]} 6. c4 {[%clk 0:02:59]}  O-O {[%clk 0:02:54]} 7. Nf3 {[%clk 0:02:58]}  d5 {[%clk 0:02:50]} 8. Nc3 {[%clk 0:02:54]}  c6 {[%clk 0:02:48]} 9. Be2 {[%clk 0:02:49]}  dxc4 {[%clk 0:02:45]} 10. Bxc4 {[%clk 0:02:46]}  Bg4 {[%clk 0:02:44]} 11. d4 {[%clk 0:02:38]}  Nbd7 {[%clk 0:02:43]} 12. Ba2 {[%clk 0:02:37]}  e5 {[%clk 0:02:39]} 13. dxe5 {[%clk 0:02:34]}  Bxf3 {[%clk 0:02:39]} 14. gxf3 {[%clk 0:02:26]}  Nxe5 {[%clk 0:02:39]} 15. Ke2 {[%clk 0:02:27]}  Qc8 {[%clk 0:02:32]} 16. h3 {[%clk 0:02:23]}  Qf5 {[%clk 0:02:27]} 17. f4 {[%clk 0:02:19]}  Rfd8 {[%clk 0:02:26]} 18. Qb1 {[%clk 0:02:10]}  Qh5+ {[%clk 0:02:25]} 19. Kf1 {[%clk 0:02:11]}  Nd3 {[%clk 0:02:15]} 20. Nd1 {[%clk 0:01:13]}  Qf3 {[%clk 0:02:12]} 21. Rh2 {[%clk 0:01:09]}  Ne4 {[%clk 0:02:13]} 22. Qc2 {[%clk 0:00:58]}  Nxb2 {[%clk 0:02:10]} 23. Nxb2 {[%clk 0:00:57]}  Rd2 {[%clk 0:02:11]} 24. Bxf7+ {[%clk 0:00:35]}  Kh8 {[%clk 0:02:10]} 0-1


[Site "https://www.chess.com"]

[Event "Titled Tuesday Blitz November 15 Late 2022"]
[White "Storey, Charles H"]
[Black "Artemenko, Oleg"]
[WhiteFideId "406686"]
[BlackFideId "14201798"]
[WhiteElo "2492"]
[BlackElo "2761"]
[Result "0-1"]
[Round "08"]
[TimeControl "180+1"]
[Date "2022.11.16"]
[WhiteClock "0:00:03"]
[BlackClock "0:01:24"]

1. c4 {[%clk 0:03:00]}  g5 {[%clk 0:02:57]} 2. d4 {[%clk 0:02:58]}  h6 {[%clk 0:02:57]} 3. Nc3 {[%clk 0:02:55]}  Bg7 {[%clk 0:02:57]} 4. e4 {[%clk 0:02:54]}  d6 {[%clk 0:02:55]} 5. Be2 {[%clk 0:02:49]}  Nc6 {[%clk 0:02:55]} 6. Be3 {[%clk 0:02:48]}  e5 {[%clk 0:02:53]} 7. dxe5 {[%clk 0:02:44]}  Nxe5 {[%clk 0:02:52]} 8. h4 {[%clk 0:02:33]}  gxh4 {[%clk 0:02:47]} 9. f4 {[%clk 0:02:17]}  Ng6 {[%clk 0:02:41]} 10. Nf3 {[%clk 0:02:16]}  Nf6 {[%clk 0:02:36]} 11. Qd2 {[%clk 0:01:50]}  Ng4 {[%clk 0:02:34]} 12. Bg1 {[%clk 0:01:50]}  Bd7 {[%clk 0:02:27]} 13. O-O-O {[%clk 0:01:49]}  Bc6 {[%clk 0:02:28]} 14. Nd4 {[%clk 0:01:37]}  Bd7 {[%clk 0:02:26]} 15. Nf5 {[%clk 0:01:36]}  Bf6 {[%clk 0:02:23]} 16. Bxg4 {[%clk 0:01:34]}  Nxf4 {[%clk 0:02:23]} 17. Be3 {[%clk 0:01:25]}  Ne6 {[%clk 0:02:15]} 18. Nd5 {[%clk 0:01:18]}  Be5 {[%clk 0:02:14]} 19. Kb1 {[%clk 0:01:06]}  h5 {[%clk 0:02:09]} 20. Bh3 {[%clk 0:01:04]}  Bc6 {[%clk 0:02:03]} 21. Nd4 {[%clk 0:00:47]}  Bd7 {[%clk 0:02:00]} 22. Rhf1 {[%clk 0:00:40]}  Nc5 {[%clk 0:01:57]} 23. Nc3 {[%clk 0:00:25]}  Bxh3 {[%clk 0:01:55]} 24. gxh3 {[%clk 0:00:25]}  Qd7 {[%clk 0:01:56]} 25. Bg5 {[%clk 0:00:23]}  Qxh3 {[%clk 0:01:54]} 26. Ncb5 {[%clk 0:00:19]}  Qd7 {[%clk 0:01:53]} 27. Qf2 {[%clk 0:00:17]}  Nxe4 {[%clk 0:01:52]} 28. Qg2 {[%clk 0:00:17]}  Ng3 {[%clk 0:01:50]} 29. Qxb7 {[%clk 0:00:16]}  Rc8 {[%clk 0:01:49]} 30. Nxa7 {[%clk 0:00:17]}  Nxf1 {[%clk 0:01:48]} 31. Nxc8 {[%clk 0:00:15]}  Ne3 {[%clk 0:01:47]} 32. Bxe3 {[%clk 0:00:15]}  O-O {[%clk 0:01:46]} 33. Nc2 {[%clk 0:00:12]}  Rxc8 {[%clk 0:01:45]} 34. Qg2+ {[%clk 0:00:13]}  Bg3 {[%clk 0:01:46]} 35. Bf2 {[%clk 0:00:10]}  Qg4 {[%clk 0:01:45]} 36. Rg1 {[%clk 0:00:09]}  Re8 {[%clk 0:01:36]} 37. Bxg3 {[%clk 0:00:10]}  hxg3 {[%clk 0:01:36]} 38. Qxg3 {[%clk 0:00:10]}  Qxg3 {[%clk 0:01:37]} 39. Rxg3+ {[%clk 0:00:10]}  Kh7 {[%clk 0:01:38]} 40. Rf3 {[%clk 0:00:10]}  Kg6 {[%clk 0:01:37]} 41. Nd4 {[%clk 0:00:10]}  h4 {[%clk 0:01:37]} 42. Nf5 {[%clk 0:00:09]}  Rh8 {[%clk 0:01:37]} 43. Nxh4+ {[%clk 0:00:07]}  Rxh4 {[%clk 0:01:36]} 44. b3 {[%clk 0:00:07]}  c6 {[%clk 0:01:32]} 45. a4 {[%clk 0:00:07]}  d5 {[%clk 0:01:33]} 46. cxd5 {[%clk 0:00:07]}  cxd5 {[%clk 0:01:34]} 47. Ka2 {[%clk 0:00:06]}  f5 {[%clk 0:01:25]} 48. a5 {[%clk 0:00:05]}  Kf6 {[%clk 0:01:26]} 49. b4 {[%clk 0:00:05]}  Ke6 {[%clk 0:01:26]} 50. Rb3 {[%clk 0:00:04]}  Kd6 {[%clk 0:01:26]} 51. a6 {[%clk 0:00:04]}  Kc7 {[%clk 0:01:25]} 52. Ka3 {[%clk 0:00:03]}  Kb6 {[%clk 0:01:25]} 53. Rf3 {[%clk 0:00:02]}  Kxa6 {[%clk 0:01:24]} 54. Ka4 {[%clk 0:00:03]}  f4 {[%clk 0:01:23]} 55. Rd3 {[%clk 0:00:03]}  Rh5 {[%clk 0:01:24]} 56. Rd4 {[%clk 0:00:03]}  Rf5 {[%clk 0:01:24]} 57. b5+ {[%clk 0:00:03]}  Kb6 {[%clk 0:01:24]} 58. Rd2 {[%clk 0:00:03]}  f3 {[%clk 0:01:24]} 59. Rf2 {[%clk 0:00:04]}  Rf4+ {[%clk 0:01:25]} 60. Kb3 {[%clk 0:00:04]}  Kxb5 {[%clk 0:01:26]} 61. Kc3 {[%clk 0:00:05]}  d4+ {[%clk 0:01:26]} 62. Kd3 {[%clk 0:00:06]}  Kc5 {[%clk 0:01:26]} 63. Rc2+ {[%clk 0:00:06]}  Kd5 {[%clk 0:01:27]} 64. Rf2 {[%clk 0:00:05]}  Rf8 {[%clk 0:01:26]} 65. Rf1 {[%clk 0:00:05]}  f2 {[%clk 0:01:26]} 66. Ke2 {[%clk 0:00:06]}  Ke4 {[%clk 0:01:27]} 67. Kd2 {[%clk 0:00:04]}  Kf3 {[%clk 0:01:26]} 68. Rh1 {[%clk 0:00:02]}  Kg2 {[%clk 0:01:24]} 69. Rh7 {[%clk 0:00:02]}  f1=Q {[%clk 0:01:24]} 70. Rg7+ {[%clk 0:00:03]}  Kf3 {[%clk 0:01:24]} 0-1


[Site "https://www.chess.com"]

[Event "Titled Tuesday Blitz November 15 Late 2022"]
[White "Svane, Rasmus"]
[Black "Zhigalko, Sergei"]
[WhiteFideId "4657101"]
[BlackFideId "13502956"]
[WhiteElo "2674"]
[BlackElo "2662"]
[Result "1-0"]
[Round "08"]
[TimeControl "180+1"]
[Date "2022.11.15"]
[WhiteClock "0:00:15"]
[BlackClock "0:00:01"]

1. Nf3 {[%clk 0:02:57]}  d5 {[%clk 0:02:59]} 2. g3 {[%clk 0:02:57]}  Nf6 {[%clk 0:02:52]} 3. Bg2 {[%clk 0:02:56]}  Bf5 {[%clk 0:02:51]} 4. c4 {[%clk 0:02:56]}  c6 {[%clk 0:02:43]} 5. Qb3 {[%clk 0:02:56]}  Qc8 {[%clk 0:02:43]} 6. O-O {[%clk 0:02:50]}  e6 {[%clk 0:02:43]} 7. d3 {[%clk 0:02:50]}  Nbd7 {[%clk 0:02:42]} 8. cxd5 {[%clk 0:02:50]}  exd5 {[%clk 0:02:39]} 9. Nc3 {[%clk 0:02:50]}  Be7 {[%clk 0:02:36]} 10. Qc2 {[%clk 0:02:49]}  h6 {[%clk 0:02:32]} 11. e4 {[%clk 0:02:49]}  dxe4 {[%clk 0:02:18]} 12. dxe4 {[%clk 0:02:50]}  Bh7 {[%clk 0:02:19]} 13. Be3 {[%clk 0:02:50]}  O-O {[%clk 0:02:19]} 14. h3 {[%clk 0:02:50]}  Re8 {[%clk 0:02:18]} 15. Rfe1 {[%clk 0:02:50]}  Bb4 {[%clk 0:02:17]} 16. Nd2 {[%clk 0:02:47]}  Nc5 {[%clk 0:01:58]} 17. Bd4 {[%clk 0:02:38]}  Ncd7 {[%clk 0:01:52]} 18. a3 {[%clk 0:02:27]}  Bc5 {[%clk 0:01:52]} 19. Nb3 {[%clk 0:02:15]}  Bxd4 {[%clk 0:01:50]} 20. Nxd4 {[%clk 0:02:15]}  Qc7 {[%clk 0:01:48]} 21. Re3 {[%clk 0:02:15]}  Rad8 {[%clk 0:01:45]} 22. Rae1 {[%clk 0:02:06]}  Ne5 {[%clk 0:01:32]} 23. Nb3 {[%clk 0:02:04]}  Qb6 {[%clk 0:01:13]} 24. R3e2 {[%clk 0:01:50]}  Nd3 {[%clk 0:00:48]} 25. Rd1 {[%clk 0:01:45]}  Ne5 {[%clk 0:00:48]} 26. Rde1 {[%clk 0:01:31]}  Nd3 {[%clk 0:00:48]} 27. Rd1 {[%clk 0:01:24]}  Ne5 {[%clk 0:00:48]} 28. Rf1 {[%clk 0:01:04]}  Rd3 {[%clk 0:00:38]} 29. Kh1 {[%clk 0:00:58]}  Red8 {[%clk 0:00:34]} 30. Nc1 {[%clk 0:00:48]}  R3d7 {[%clk 0:00:29]} 31. Rfe1 {[%clk 0:00:42]}  Nh5 {[%clk 0:00:24]} 32. Na4 {[%clk 0:00:36]}  Qb5 {[%clk 0:00:22]} 33. Nc5 {[%clk 0:00:37]}  Rd4 {[%clk 0:00:17]} 34. b4 {[%clk 0:00:31]}  a5 {[%clk 0:00:12]} 35. N5b3 {[%clk 0:00:31]}  Rc4 {[%clk 0:00:11]} 36. Qb2 {[%clk 0:00:28]}  a4 {[%clk 0:00:04]} 37. Nc5 {[%clk 0:00:27]}  b6 {[%clk 0:00:03]} 38. Qxe5 {[%clk 0:00:26]}  bxc5 {[%clk 0:00:03]} 39. Qxh5 {[%clk 0:00:26]}  Rxc1 {[%clk 0:00:01]} 40. Rxc1 {[%clk 0:00:25]}  Bg6 {[%clk 0:00:01]} 41. Qf3 {[%clk 0:00:22]}  cxb4 {[%clk 0:00:02]} 42. axb4 {[%clk 0:00:22]}  Qxb4 {[%clk 0:00:02]} 43. Qc3 {[%clk 0:00:22]}  Qb5 {[%clk 0:00:02]} 44. Rb2 {[%clk 0:00:21]}  Qa6 {[%clk 0:00:01]} 45. Qxc6 {[%clk 0:00:20]}  Qa7 {[%clk 0:00:02]} 46. Qc7 {[%clk 0:00:19]}  Qa8 {[%clk 0:00:01]} 47. Ra2 {[%clk 0:00:15]}  Rd4 {[%clk 0:00:01]} 48. Qc8+ {[%clk 0:00:15]} 1-0


[Site "https://www.chess.com"]

[Event "Titled Tuesday Blitz November 15 Late 2022"]
[White "Tan, Ralph"]
[Black "Paiva, Henrique M A Albergaria"]
[WhiteFideId "30966590"]
[BlackFideId "1920995"]
[WhiteElo "2059"]
[BlackElo "1953"]
[Result "1-0"]
[Round "08"]
[TimeControl "180+1"]
[Date "2022.11.16"]
[WhiteClock "0:00:13"]
[BlackClock "0:01:02"]

1. Nf3 {[%clk 0:03:00]}  d5 {[%clk 0:02:59]} 2. g3 {[%clk 0:03:01]}  Nf6 {[%clk 0:02:59]} 3. Bg2 {[%clk 0:03:00]}  Bf5 {[%clk 0:02:59]} 4. O-O {[%clk 0:03:00]}  Nbd7 {[%clk 0:02:58]} 5. d4 {[%clk 0:03:00]}  e6 {[%clk 0:02:58]} 6. Nh4 {[%clk 0:03:00]}  Bg4 {[%clk 0:02:57]} 7. h3 {[%clk 0:03:00]}  Bh5 {[%clk 0:02:58]} 8. g4 {[%clk 0:03:00]}  Bg6 {[%clk 0:02:57]} 9. Nxg6 {[%clk 0:02:40]}  hxg6 {[%clk 0:02:56]} 10. Bf4 {[%clk 0:02:40]}  Bd6 {[%clk 0:02:51]} 11. Bxd6 {[%clk 0:02:36]}  cxd6 {[%clk 0:02:52]} 12. Nd2 {[%clk 0:02:29]}  Qb6 {[%clk 0:02:51]} 13. Nb3 {[%clk 0:02:28]}  Rc8 {[%clk 0:02:50]} 14. c3 {[%clk 0:02:27]}  a5 {[%clk 0:02:43]} 15. a4 {[%clk 0:02:19]}  Qc7 {[%clk 0:02:42]} 16. Nd2 {[%clk 0:02:10]}  Nb6 {[%clk 0:02:40]} 17. e4 {[%clk 0:02:04]}  dxe4 {[%clk 0:02:39]} 18. Nxe4 {[%clk 0:02:05]}  Nxe4 {[%clk 0:02:39]} 19. Bxe4 {[%clk 0:02:05]}  d5 {[%clk 0:02:39]} 20. Bg2 {[%clk 0:02:05]}  Nc4 {[%clk 0:02:39]} 21. Qe2 {[%clk 0:02:05]}  O-O {[%clk 0:02:33]} 22. f4 {[%clk 0:01:52]}  Rfe8 {[%clk 0:02:25]} 23. Rf2 {[%clk 0:01:51]}  Nd6 {[%clk 0:02:21]} 24. Raf1 {[%clk 0:01:50]}  f5 {[%clk 0:02:20]} 25. Qe5 {[%clk 0:01:13]}  Ne4 {[%clk 0:02:18]} 26. Bxe4 {[%clk 0:01:10]}  dxe4 {[%clk 0:02:00]} 27. Rd1 {[%clk 0:01:00]}  Qxe5 {[%clk 0:01:55]} 28. fxe5 {[%clk 0:01:00]}  Kf7 {[%clk 0:01:51]} 29. d5 {[%clk 0:00:38]}  exd5 {[%clk 0:01:50]} 30. gxf5 {[%clk 0:00:37]}  gxf5 {[%clk 0:01:47]} 31. Rxf5+ {[%clk 0:00:37]}  Ke6 {[%clk 0:01:47]} 32. Rg5 {[%clk 0:00:37]}  Re7 {[%clk 0:01:45]} 33. Kf2 {[%clk 0:00:31]}  Rf8+ {[%clk 0:01:45]} 34. Ke3 {[%clk 0:00:31]}  Rf5 {[%clk 0:01:26]} 35. Rdg1 {[%clk 0:00:26]}  Rf3+ {[%clk 0:01:24]} 36. Kd4 {[%clk 0:00:25]}  Rd3+ {[%clk 0:01:19]} 37. Kc5 {[%clk 0:00:23]}  Rc7+ {[%clk 0:01:17]} 38. Kb6 {[%clk 0:00:23]}  Rc6+ {[%clk 0:01:12]} 39. Kxb7 {[%clk 0:00:22]}  Rc4 {[%clk 0:01:12]} 40. Rh5 {[%clk 0:00:16]}  Rd2 {[%clk 0:01:10]} 41. Rg6+ {[%clk 0:00:16]}  Kf7 {[%clk 0:01:10]} 42. Rb6 {[%clk 0:00:15]}  e3 {[%clk 0:01:07]} 43. e6+ {[%clk 0:00:16]}  Kg6 {[%clk 0:01:04]} 44. Re5 {[%clk 0:00:16]}  Re4 {[%clk 0:01:03]} 45. e7+ {[%clk 0:00:14]}  Kh7 {[%clk 0:01:03]} 46. e8=Q {[%clk 0:00:13]}  e2 {[%clk 0:01:01]} 47. Rxe4 {[%clk 0:00:13]}  dxe4 {[%clk 0:01:02]} 48. Qxe4+ {[%clk 0:00:13]} 1-0


[Site "https://www.chess.com"]

[Event "Titled Tuesday Blitz November 15 Late 2022"]
[White "Tanenbaum, Zachary"]
[Black "Premnath, R."]
[WhiteFideId "2060850"]
[BlackFideId "5021928"]
[WhiteElo "2733"]
[BlackElo "2559"]
[Result "1-0"]
[Round "08"]
[TimeControl "180+1"]
[Date "2022.11.16"]
[WhiteClock "0:00:14"]
[BlackClock "0:00:05"]

1. e4 {[%clk 0:03:00]}  c5 {[%clk 0:02:59]} 2. Nf3 {[%clk 0:03:00]}  d6 {[%clk 0:02:59]} 3. d4 {[%clk 0:03:00]}  cxd4 {[%clk 0:03:00]} 4. Nxd4 {[%clk 0:03:01]}  Nf6 {[%clk 0:02:59]} 5. Nc3 {[%clk 0:03:01]}  g6 {[%clk 0:02:59]} 6. Be3 {[%clk 0:03:01]}  Bg7 {[%clk 0:03:00]} 7. f3 {[%clk 0:03:02]}  O-O {[%clk 0:03:00]} 8. Qd2 {[%clk 0:03:02]}  Nc6 {[%clk 0:03:01]} 9. g4 {[%clk 0:03:00]}  Bxg4 {[%clk 0:02:59]} 10. fxg4 {[%clk 0:03:00]}  Nxg4 {[%clk 0:03:00]} 11. Nb3 {[%clk 0:03:01]}  e6 {[%clk 0:02:59]} 12. O-O-O {[%clk 0:02:59]}  a5 {[%clk 0:02:53]} 13. Bb5 {[%clk 0:02:56]}  Nxe3 {[%clk 0:02:38]} 14. Qxe3 {[%clk 0:02:56]}  Qh4 {[%clk 0:02:15]} 15. Kb1 {[%clk 0:02:53]}  Rfd8 {[%clk 0:02:08]} 16. Rhf1 {[%clk 0:02:06]}  Ne5 {[%clk 0:01:57]} 17. h3 {[%clk 0:01:50]}  h5 {[%clk 0:01:54]} 18. Qb6 {[%clk 0:01:34]}  a4 {[%clk 0:01:18]} 19. Nxa4 {[%clk 0:01:26]}  Qxe4 {[%clk 0:01:17]} 20. Nc3 {[%clk 0:01:21]}  Qg2 {[%clk 0:01:17]} 21. Rxd6 {[%clk 0:01:05]}  Rxd6 {[%clk 0:01:08]} 22. Qxd6 {[%clk 0:01:06]}  Qxh3 {[%clk 0:01:08]} 23. Qc7 {[%clk 0:00:54]}  Qg2 {[%clk 0:01:04]} 24. a4 {[%clk 0:00:44]}  h4 {[%clk 0:01:04]} 25. Nc5 {[%clk 0:00:29]}  Nf3 {[%clk 0:00:23]} 26. N3e4 {[%clk 0:00:29]}  h3 {[%clk 0:00:17]} 27. Qxb7 {[%clk 0:00:27]}  Rf8 {[%clk 0:00:17]} 28. Nf6+ {[%clk 0:00:22]}  Bxf6 {[%clk 0:00:15]} 29. Qxf3 {[%clk 0:00:23]}  Bd4 {[%clk 0:00:13]} 30. Nd7 {[%clk 0:00:16]}  Kg7 {[%clk 0:00:13]} 31. Nxf8 {[%clk 0:00:15]}  Qxf3 {[%clk 0:00:07]} 32. Rxf3 {[%clk 0:00:16]}  h2 {[%clk 0:00:07]} 33. Nxe6+ {[%clk 0:00:16]}  fxe6 {[%clk 0:00:07]} 34. Rh3 {[%clk 0:00:16]}  Be5 {[%clk 0:00:06]} 35. Bc6 {[%clk 0:00:15]}  g5 {[%clk 0:00:07]} 36. a5 {[%clk 0:00:15]}  Kf6 {[%clk 0:00:06]} 37. a6 {[%clk 0:00:15]}  g4 {[%clk 0:00:06]} 38. Rh5 {[%clk 0:00:14]}  Bd4 {[%clk 0:00:06]} 39. Rxh2 {[%clk 0:00:13]}  Kg5 {[%clk 0:00:06]} 40. Rd2 {[%clk 0:00:12]}  Bc5 {[%clk 0:00:05]} 41. Rd7 {[%clk 0:00:12]}  g3 {[%clk 0:00:05]} 42. a7 {[%clk 0:00:13]}  Bxa7 {[%clk 0:00:05]} 43. Rxa7 {[%clk 0:00:14]} 1-0


[Site "https://www.chess.com"]

[Event "Titled Tuesday Blitz November 15 Late 2022"]
[White "Tang, Andrew"]
[Black "Chigaev, Maksim"]
[WhiteFideId "2059630"]
[BlackFideId "4108116"]
[WhiteElo "2581"]
[BlackElo "2541"]
[Result "0-1"]
[Round "08"]
[TimeControl "180+1"]
[Date "2022.11.15"]
[WhiteClock "0:00:02"]
[BlackClock "0:00:03"]

1. d4 {[%clk 0:03:00]}  Nf6 {[%clk 0:03:00]} 2. c4 {[%clk 0:03:00]}  g6 {[%clk 0:03:01]} 3. f3 {[%clk 0:02:59]}  d5 {[%clk 0:02:56]} 4. cxd5 {[%clk 0:03:00]}  Nxd5 {[%clk 0:02:57]} 5. e4 {[%clk 0:03:01]}  Nb6 {[%clk 0:02:57]} 6. Nc3 {[%clk 0:03:02]}  Bg7 {[%clk 0:02:58]} 7. Be3 {[%clk 0:03:02]}  O-O {[%clk 0:02:46]} 8. Qd2 {[%clk 0:03:03]}  e5 {[%clk 0:02:47]} 9. d5 {[%clk 0:03:00]}  c6 {[%clk 0:02:47]} 10. h4 {[%clk 0:02:59]}  cxd5 {[%clk 0:02:42]} 11. exd5 {[%clk 0:03:00]}  h5 {[%clk 0:02:41]} 12. g4 {[%clk 0:02:42]}  Na6 {[%clk 0:02:41]} 13. gxh5 {[%clk 0:02:39]}  Bf5 {[%clk 0:02:29]} 14. h6 {[%clk 0:01:50]}  Bf6 {[%clk 0:02:18]} 15. Bg5 {[%clk 0:01:48]}  Nb4 {[%clk 0:02:11]} 16. Ne4 {[%clk 0:01:32]}  Bxg5 {[%clk 0:01:50]} 17. hxg5 {[%clk 0:01:30]}  N4xd5 {[%clk 0:01:42]} 18. Ne2 {[%clk 0:00:47]}  Qe7 {[%clk 0:01:33]} 19. N2g3 {[%clk 0:00:20]}  Rad8 {[%clk 0:01:34]} 20. Rc1 {[%clk 0:00:13]}  Kh8 {[%clk 0:01:28]} 21. a3 {[%clk 0:00:11]}  Nf4 {[%clk 0:01:05]} 22. Qb4 {[%clk 0:00:11]}  Qe6 {[%clk 0:00:37]} 23. Rh2 {[%clk 0:00:10]}  Nbd5 {[%clk 0:00:34]} 24. Qb3 {[%clk 0:00:11]}  b6 {[%clk 0:00:24]} 25. Rd1 {[%clk 0:00:11]}  Bxe4 {[%clk 0:00:11]} 26. Nxe4 {[%clk 0:00:10]}  Nc7 {[%clk 0:00:08]} 27. Rxd8 {[%clk 0:00:10]}  Rxd8 {[%clk 0:00:07]} 28. Qc3 {[%clk 0:00:07]}  Ncd5 {[%clk 0:00:05]} 29. Qc1 {[%clk 0:00:07]}  f6 {[%clk 0:00:04]} 30. Rd2 {[%clk 0:00:05]}  fxg5 {[%clk 0:00:05]} 31. Qc4 {[%clk 0:00:04]}  Qe7 {[%clk 0:00:04]} 32. Qc6 {[%clk 0:00:03]}  g4 {[%clk 0:00:04]} 33. Bc4 {[%clk 0:00:02]}  Qh4+ {[%clk 0:00:03]} 34. Kd1 {[%clk 0:00:02]}  Ne3+ {[%clk 0:00:03]} 0-1


[Site "https://www.chess.com"]

[Event "Titled Tuesday Blitz November 15 Late 2022"]
[White "Torres Dominguez, David"]
[Black "Chirilov, James A"]
[WhiteFideId "2220857"]
[BlackFideId "30976677"]
[WhiteElo "2037"]
[BlackElo "1790"]
[Result "0-1"]
[Round "08"]
[TimeControl "180+1"]
[Date "2022.11.16"]
[WhiteClock "0:00:04"]
[BlackClock "0:01:11"]

1. e4 {[%clk 0:02:27]}  c5 {[%clk 0:02:59]} 2. Nf3 {[%clk 0:02:26]}  d6 {[%clk 0:02:58]} 3. d4 {[%clk 0:02:26]}  cxd4 {[%clk 0:02:59]} 4. Nxd4 {[%clk 0:02:25]}  Nf6 {[%clk 0:02:59]} 5. Nc3 {[%clk 0:02:24]}  a6 {[%clk 0:03:00]} 6. f4 {[%clk 0:02:23]}  e5 {[%clk 0:02:54]} 7. Nf3 {[%clk 0:02:24]}  Qc7 {[%clk 0:02:54]} 8. a4 {[%clk 0:02:21]}  Be7 {[%clk 0:02:54]} 9. Bd3 {[%clk 0:02:21]}  Nc6 {[%clk 0:02:54]} 10. O-O {[%clk 0:02:21]}  O-O {[%clk 0:02:49]} 11. Kh1 {[%clk 0:02:21]}  exf4 {[%clk 0:02:46]} 12. Bxf4 {[%clk 0:02:19]}  Ne5 {[%clk 0:02:46]} 13. Nd4 {[%clk 0:02:16]}  Re8 {[%clk 0:02:43]} 14. Bg5 {[%clk 0:02:10]}  Be6 {[%clk 0:02:37]} 15. Nf5 {[%clk 0:02:08]}  Bd8 {[%clk 0:02:18]} 16. Bxf6 {[%clk 0:01:38]}  Bxf6 {[%clk 0:02:15]} 17. Nd5 {[%clk 0:01:38]}  Bxd5 {[%clk 0:02:13]} 18. exd5 {[%clk 0:01:37]}  Qc5 {[%clk 0:02:06]} 19. Qh5 {[%clk 0:01:21]}  Nxd3 {[%clk 0:02:01]} 20. cxd3 {[%clk 0:01:17]}  Re5 {[%clk 0:01:56]} 21. Qg4 {[%clk 0:01:15]}  Qxd5 {[%clk 0:01:50]} 22. Nh6+ {[%clk 0:00:51]}  Kh8 {[%clk 0:01:46]} 23. Nf5 {[%clk 0:00:27]}  Rae8 {[%clk 0:01:44]} 24. h3 {[%clk 0:00:23]}  Re2 {[%clk 0:01:38]} 25. Rf3 {[%clk 0:00:18]}  Re1+ {[%clk 0:01:37]} 26. Rf1 {[%clk 0:00:16]}  Rxa1 {[%clk 0:01:35]} 27. Rxa1 {[%clk 0:00:14]}  h6 {[%clk 0:01:29]} 28. Rf1 {[%clk 0:00:11]}  Qe5 {[%clk 0:01:19]} 29. Rf3 {[%clk 0:00:09]}  Rc8 {[%clk 0:01:13]} 30. Rf1 {[%clk 0:00:04]}  Rc2 {[%clk 0:01:11]} 0-1


[Site "https://www.chess.com"]

[Event "Titled Tuesday Blitz November 15 Late 2022"]
[White "Tsydypov, Zhamsaran"]
[Black "Eljanov, Pavel"]
[WhiteFideId "4108566"]
[BlackFideId "14102951"]
[WhiteElo "2591"]
[BlackElo "2601"]
[Result "1-0"]
[Round "08"]
[TimeControl "180+1"]
[Date "2022.11.15"]
[WhiteClock "0:01:51"]
[BlackClock "0:00:43"]

1. e4 {[%clk 0:03:00]}  e5 {[%clk 0:03:00]} 2. Nf3 {[%clk 0:03:00]}  Nc6 {[%clk 0:03:00]} 3. Bc4 {[%clk 0:03:00]}  Bc5 {[%clk 0:03:00]} 4. d3 {[%clk 0:03:00]}  Nf6 {[%clk 0:03:00]} 5. h3 {[%clk 0:02:59]}  O-O {[%clk 0:02:59]} 6. Bg5 {[%clk 0:02:58]}  h6 {[%clk 0:02:55]} 7. Bh4 {[%clk 0:02:57]}  Be7 {[%clk 0:02:48]} 8. Nbd2 {[%clk 0:02:54]}  d6 {[%clk 0:02:47]} 9. c3 {[%clk 0:02:52]}  Na5 {[%clk 0:02:33]} 10. Bb5 {[%clk 0:02:53]}  a6 {[%clk 0:02:31]} 11. Ba4 {[%clk 0:02:53]}  c5 {[%clk 0:02:28]} 12. g4 {[%clk 0:02:49]}  b5 {[%clk 0:02:15]} 13. Bc2 {[%clk 0:02:48]}  Be6 {[%clk 0:02:11]} 14. Rg1 {[%clk 0:02:44]}  Nh7 {[%clk 0:02:10]} 15. Bxe7 {[%clk 0:02:43]}  Qxe7 {[%clk 0:02:11]} 16. h4 {[%clk 0:02:44]}  f6 {[%clk 0:02:06]} 17. Nf1 {[%clk 0:02:41]}  d5 {[%clk 0:02:04]} 18. Ne3 {[%clk 0:02:39]}  dxe4 {[%clk 0:01:54]} 19. dxe4 {[%clk 0:02:38]}  Rad8 {[%clk 0:01:51]} 20. Qe2 {[%clk 0:02:38]}  Nc4 {[%clk 0:01:50]} 21. Nd5 {[%clk 0:02:31]}  Qf7 {[%clk 0:01:26]} 22. O-O-O {[%clk 0:02:30]}  Rd7 {[%clk 0:01:17]} 23. b3 {[%clk 0:02:02]}  Na3 {[%clk 0:01:17]} 24. g5 {[%clk 0:02:03]}  fxg5 {[%clk 0:00:56]} 25. Nxe5 {[%clk 0:02:02]}  Qxf2 {[%clk 0:00:56]} 26. Bd3 {[%clk 0:01:51]}  Qxe2 {[%clk 0:00:47]} 27. Bxe2 {[%clk 0:01:51]}  Rdd8 {[%clk 0:00:43]} 28. Ne7+ {[%clk 0:01:51]} 1-0


[Site "https://www.chess.com"]